fUSD/lending_fUSD_20260601
["ID","MTS","AMOUNT","RATE_DAILY","PERIOD"]
[423690547,1780312260000,-2500.0,0.00023,20]
[423690545,1780312260000,-355.08884253,0.00023,2]
[423690546,1780312260000,-1000.0,0.00023,20]
[423690550,1780312260000,-167.0,0.00023,7]
[423690548,1780312260000,-327.92668596,0.00023,20]
[423690551,1780312260000,-235.72,0.00023,30]
[423690549,1780312260000,-207.33407554,0.00023,3]
[423690552,1780312260000,-684.0,0.0002305,2]
[423690541,1780312260000,-376.56613814,0.00022711,2]
[423690583,1780312260000,-1346.3,0.00024324,2]
[423690580,1780312260000,-200.0,0.0002406,2]
[423690595,1780312260000,-494.91,0.00024658,2]
[423690612,1780312260000,-501.51,0.00025234,30]
[423690615,1780312260000,-500.0,0.00025412,7]
[423690618,1780312260000,-200.0,0.0002564,2]
[423690616,1780312260000,-501.51,0.00025523,2]
[423690617,1780312260000,-494.91,0.00025523,2]
[423690619,1780312260000,-159.23,0.00025644,2]
[423690620,1780312260000,-194.65,0.00025644,2]
[423690621,1780312260000,-477.64341197,0.00025785,2]
[423690624,1780312260000,-1355.0,0.000259,3]
[423690584,1780312260000,-990.02,0.000244,7]
[423690625,1780312260000,-2000.0,0.0002598,7]
[423690628,1780312260000,-500.0,0.00026,2]
[423690626,1780312260000,-500.0,0.00026,2]
[423690623,1780312260000,-494.91,0.00025811,7]
[423690627,1780312260000,-550.0,0.00026,2]
[423690629,1780312260000,-209.21103511,0.00026,3]
[423690630,1780312260000,-215.65015035,0.00026,3]
[423690631,1780312260000,-209.21103511,0.00026,2]
[423690632,1780312260000,-501.51,0.00026099,30]
[423690636,1780312260000,-501.51,0.00026388,2]
[423690633,1780312260000,-494.91,0.00026099,30]
[423690634,1780312260000,-1346.3,0.00026296,2]
[423690637,1780312260000,-494.91,0.00026388,2]
[423690635,1780312260000,-1000.0,0.00026328,2]
[423690638,1780312260000,-324.59816476,0.00026397,2]
[423690614,1780312260000,-6002.46,0.0002532,7]
[423690613,1780312260000,-494.91,0.00025234,30]
[423690622,1780312260000,-501.51,0.00025811,7]
[423690611,1780312260000,-932.0,0.00025181,2]
[423690593,1780312260000,-416.00554112,0.00024658,2]
[423690609,1780312260000,-1226.0,0.00025178,2]
[423690587,1780312260000,-2054.15682156,0.00024416,2]
[423690586,1780312260000,-2991.49051684,0.00024416,2]
[423690594,1780312260000,-501.51,0.00024658,2]
[423690585,1780312260000,-391.02372184,0.00024414,2]
[423690590,1780312260000,-434.91,0.00024658,2]
[423690591,1780312260000,-500.0,0.00024658,2]
[423690589,1780312260000,-1000.0,0.00024658,2]
[423690592,1780312260000,-500.0,0.00024658,2]
[423690596,1780312260000,-200.0,0.0002485,2]
[423690600,1780312260000,-151.0,0.00024997,7]
[423690588,1780312260000,-4079.90140515,0.00024452,2]
[423690597,1780312260000,-867.64,0.00024918,7]
[423690610,1780312260000,-6068.0,0.00025181,2]
[423690608,1780312260000,-1400.0,0.00025138,7]
[423690598,1780312260000,-501.51,0.00024946,7]
[423690604,1780312260000,-268.78786717,0.00025,2]
[423690599,1780312260000,-494.91,0.00024946,7]
[423690603,1780312260000,-315528.33295117,0.00025,2]
[423690606,1780312260000,-3551.0,0.00025105,2]
[423690601,1780312260000,-793.7,0.00025,7]
[423690602,1780312260000,-313.60822115,0.00025,2]
[423690607,1780312260000,-525.0,0.00025105,2]
[423690605,1780312260000,-1357.0,0.00025105,2]
[423690674,1780312261000,-500.0,0.00027397,2]
[423690676,1780312261000,-1500.0,0.00027397,2]
[423690679,1780312261000,-170.707664,0.00027397,2]
[423690675,1780312261000,-155.82469259,0.00027397,2]
[423690671,1780312261000,-206.00831254,0.00027397,7]
[423690669,1780312261000,-150.0,0.00027397,30]
[423690673,1780312261000,-500.0,0.00027397,2]
[423690672,1780312261000,-170.8013616,0.00027397,30]
[423690678,1780312261000,-300.0,0.00027397,2]
[423690668,1780312261000,-150.0,0.00027397,2]
[423690670,1780312261000,-211.8503357,0.00027397,7]
[423690680,1780312261000,-170.707664,0.00027397,2]
[423690692,1780312261000,-170.707664,0.00027397,2]
[423690682,1780312261000,-170.707664,0.00027397,2]
[423690683,1780312261000,-170.707664,0.00027397,2]
[423690684,1780312261000,-170.707664,0.00027397,2]
[423690686,1780312261000,-170.707664,0.00027397,2]
[423690687,1780312261000,-170.707664,0.00027397,2]
[423690685,1780312261000,-170.707664,0.00027397,2]
[423690689,1780312261000,-170.707664,0.00027397,2]
[423690690,1780312261000,-170.707664,0.00027397,2]
[423690688,1780312261000,-170.707664,0.00027397,2]
[423690691,1780312261000,-170.707664,0.00027397,2]
[423690667,1780312261000,-180.92,0.00027397,30]
[423690695,1780312261000,-1409.269871,0.00027397,2]
[423690681,1780312261000,-170.707664,0.00027397,2]
[423690665,1780312261000,-150.0,0.00027382,22]
[423690677,1780312261000,-1179.29,0.00027397,10]
[423690664,1780312261000,-220.0,0.0002737,2]
[423690693,1780312261000,-170.707664,0.00027397,2]
[423690643,1780312261000,-501.51,0.00026676,7]
[423690642,1780312261000,-200.0,0.0002643,2]
[423690639,1780312261000,-287.01928556,0.00026397,2]
[423690644,1780312261000,-494.91,0.00026676,7]
[423690641,1780312261000,-1000.0,0.00026424,2]
[423690640,1780312261000,-294.67405358,0.00026397,2]
[423690645,1780312261000,-990.02,0.000267,7]
[423690646,1780312261000,-5531.0,0.000267,5]
[423690648,1780312261000,-501.51,0.00026964,30]
[423690647,1780312261000,-1000.0,0.00026702,2]
[423690649,1780312261000,-494.91,0.00026964,30]
[423690666,1780312261000,-158.95,0.0002739,30]
[423690651,1780312261000,-2588.176592,0.0002701,2]
[423690652,1780312261000,-6002.46,0.00027093,7]
[423690653,1780312261000,-26097.82306139,0.00027111,2]
[423690655,1780312261000,-200.0,0.0002722,2]
[423690654,1780312261000,-695.0,0.00027137,2]
[423690656,1780312261000,-495.52,0.00027253,2]
[423690661,1780312261000,-1400.0,0.0002733,7]
[423690663,1780312261000,-150.0,0.0002737,2]
[423690659,1780312261000,-1000.0,0.00027258,2]
[423690657,1780312261000,-501.51,0.00027253,2]
[423690662,1780312261000,-280.0,0.0002737,2]
[423690658,1780312261000,-494.91,0.00027253,2]
[423690660,1780312261000,-500.0,0.00027296,2]
[423690650,1780312261000,-2000.0,0.00027,2]
[423690696,1780312261000,-1409.269871,0.00027397,2]
[423690694,1780312261000,-170.707664,0.00027397,2]
[423690698,1780312261000,-1409.269871,0.00027397,2]
[423690730,1780312261000,-151.0,0.00027397,2]
[423690729,1780312261000,-434.91,0.00027397,2]
[423690734,1780312261000,-151.0,0.00027397,2]
[423690731,1780312261000,-151.0,0.00027397,2]
[423690732,1780312261000,-151.0,0.00027397,2]
[423690733,1780312261000,-151.0,0.00027397,2]
[423690735,1780312261000,-151.0,0.00027397,2]
[423690737,1780312261000,-151.0,0.00027397,2]
[423690736,1780312261000,-178.682475,0.00027397,2]
[423690738,1780312261000,-151.0,0.00027397,2]
[423690745,1780312261000,-151.0,0.00027397,2]
[423690740,1780312261000,-151.0,0.00027397,2]
[423690728,1780312261000,-184.940196,0.00027397,2]
[423690746,1780312261000,-151.0,0.00027397,2]
[423690748,1780312261000,-151.0,0.00027397,2]
[423690751,1780312261000,-288.517642,0.00027397,2]
[423690750,1780312261000,-151.0,0.00027397,2]
[423690749,1780312261000,-249.284287,0.00027397,2]
[423690741,1780312261000,-151.0,0.00027397,2]
[423690752,1780312261000,-273.268058,0.00027397,2]
[423690742,1780312261000,-151.0,0.00027397,2]
[423690743,1780312261000,-151.0,0.00027397,2]
[423690744,1780312261000,-151.0,0.00027397,2]
[423690753,1780312261000,-273.268058,0.00027397,2]
[423690754,1780312261000,-273.268058,0.00027397,2]
[423690697,1780312261000,-1409.269871,0.00027397,2]
[423690747,1780312261000,-151.0,0.00027397,2]
[423690725,1780312261000,-151.0,0.00027397,2]
[423690739,1780312261000,-151.0,0.00027397,2]
[423690726,1780312261000,-151.0,0.00027397,2]
[423690700,1780312261000,-1409.269871,0.00027397,2]
[423690727,1780312261000,-151.0,0.00027397,2]
[423690702,1780312261000,-1409.269871,0.00027397,2]
[423690699,1780312261000,-1409.269871,0.00027397,2]
[423690704,1780312261000,-1409.269871,0.00027397,2]
[423690711,1780312261000,-1409.269871,0.00027397,2]
[423690712,1780312261000,-1409.269871,0.00027397,2]
[423690703,1780312261000,-1409.269871,0.00027397,2]
[423690714,1780312261000,-1409.269872,0.00027397,2]
[423690713,1780312261000,-1409.269871,0.00027397,2]
[423690705,1780312261000,-1409.269871,0.00027397,2]
[423690708,1780312261000,-1409.269871,0.00027397,2]
[423690710,1780312261000,-1409.269871,0.00027397,2]
[423690706,1780312261000,-1409.269871,0.00027397,2]
[423690701,1780312261000,-1409.269871,0.00027397,2]
[423690709,1780312261000,-1409.269871,0.00027397,2]
[423690715,1780312261000,-151.0,0.00027397,2]
[423690723,1780312261000,-151.0,0.00027397,2]
[423690718,1780312261000,-151.0,0.00027397,2]
[423690719,1780312261000,-151.0,0.00027397,2]
[423690722,1780312261000,-151.0,0.00027397,2]
[423690717,1780312261000,-151.0,0.00027397,2]
[423690720,1780312261000,-151.0,0.00027397,2]
[423690716,1780312261000,-151.0,0.00027397,2]
[423690707,1780312261000,-1409.269871,0.00027397,2]
[423690755,1780312261000,-273.268058,0.00027397,2]
[423690724,1780312261000,-151.0,0.00027397,2]
[423690721,1780312261000,-151.0,0.00027397,2]
[423690799,1780312262000,-889.23,0.000278,7]
[423690793,1780312262000,-5208.98,0.000274,2]
[423690795,1780312262000,-328.24261556,0.00027604,60]
[423690797,1780312262000,-150.0,0.00027671,2]
[423690781,1780312262000,-500.0,0.000274,2]
[423690790,1780312262000,-5208.98,0.000274,2]
[423690791,1780312262000,-5208.98,0.000274,2]
[423690783,1780312262000,-500.0,0.000274,2]
[423690798,1780312262000,-1109.60011597,0.0002772,3]
[423690782,1780312262000,-500.0,0.000274,2]
[423690792,1780312262000,-5208.98,0.000274,2]
[423690796,1780312262000,-695.0,0.00027671,2]
[423690810,1780312262000,-160.0,0.00028,2]
[423690800,1780312262000,-5134.04,0.000278,14]
[423690809,1780312262000,-48915.65850526,0.00028,2]
[423690811,1780312262000,-162.0,0.00028,14]
[423690808,1780312262000,-4918.0528415,0.00027993,2]
[423690801,1780312262000,-867.64,0.00027836,7]
[423690802,1780312262000,-913.9,0.00027859,15]
[423690805,1780312262000,-4918.0528415,0.00027963,2]
[423690804,1780312262000,-1000.0,0.00027956,7]
[423690803,1780312262000,-716.43829917,0.00027926,14]
[423690806,1780312262000,-1000.0,0.00027988,7]
[423690807,1780312262000,-14219.9982478,0.00027993,2]
[423690789,1780312262000,-5208.98,0.000274,2]
[423690794,1780312262000,-3439.0,0.000275,7]
[423690788,1780312262000,-600.0,0.000274,5]
[423690758,1780312262000,-273.268058,0.00027397,2]
[423690786,1780312262000,-500.0,0.000274,2]
[423690812,1780312262000,-600.0,0.00028,2]
[423690759,1780312262000,-273.268058,0.00027397,2]
[423690760,1780312262000,-273.268058,0.00027397,2]
[423690756,1780312262000,-273.268058,0.00027397,2]
[423690757,1780312262000,-273.268058,0.00027397,2]
[423690761,1780312262000,-273.268058,0.00027397,2]
[423690762,1780312262000,-273.268058,0.00027397,2]
[423690763,1780312262000,-273.268058,0.00027397,2]
[423690764,1780312262000,-273.268058,0.00027397,2]
[423690765,1780312262000,-273.268058,0.00027397,2]
[423690774,1780312262000,-424.74,0.00027397,30]
[423690773,1780312262000,-1000.0,0.00027397,30]
[423690775,1780312262000,-177.49636834,0.00027397,7]
[423690769,1780312262000,-273.268058,0.00027397,2]
[423690766,1780312262000,-273.268058,0.00027397,2]
[423690768,1780312262000,-273.268058,0.00027397,2]
[423690772,1780312262000,-7750.37,0.00027397,10]
[423690777,1780312262000,-710.07,0.000274,7]
[423690767,1780312262000,-273.268058,0.00027397,2]
[423690770,1780312262000,-273.268058,0.00027397,2]
[423690776,1780312262000,-168.70822505,0.00027397,30]
[423690771,1780312262000,-273.26805266,0.00027397,2]
[423690779,1780312262000,-889.23,0.000274,7]
[423690778,1780312262000,-150.19631424,0.000274,2]
[423690780,1780312262000,-5134.04,0.000274,14]
[423690784,1780312262000,-869.24,0.000274,2]
[423690785,1780312262000,-500.0,0.000274,2]
[423690787,1780312262000,-581.09,0.000274,2]
[423690815,1780312262000,-209.21103511,0.00028,10]
[423690833,1780312262000,-151.4769252,0.00028421,2]
[423690814,1780312262000,-215.65015035,0.00028,7]
[423690847,1780312262000,-178.55371353,0.00028423,2]
[423690848,1780312262000,-162.95578417,0.00028423,2]
[423690849,1780312262000,-156.72634123,0.00028423,2]
[423690850,1780312262000,-156.62977018,0.00028423,2]
[423690852,1780312262000,-168.63125381,0.00028423,2]
[423690851,1780312262000,-204.64361821,0.00028423,2]
[423690853,1780312262000,-184.80630817,0.00028423,2]
[423690854,1780312262000,-205.31326045,0.00028423,2]
[423690855,1780312262000,-164.48780133,0.00028423,2]
[423690817,1780312262000,-200.0,0.0002801,2]
[423690856,1780312262000,-161.95619029,0.00028423,2]
[423690857,1780312262000,-158.41899197,0.00028423,2]
[423690844,1780312262000,-167.07861682,0.00028423,2]
[423690859,1780312262000,-155.52078495,0.00028431,2]
[423690866,1780312262000,-990.02,0.000285,7]
[423690862,1780312262000,-190.71656588,0.00028431,2]
[423690868,1780312262000,-3439.0,0.000286,7]
[423690867,1780312262000,-152.0,0.00028562,3]
[423690863,1780312262000,-745.6387062,0.00028452,14]
[423690864,1780312262000,-187.79715077,0.00028473,2]
[423690860,1780312262000,-198.95457223,0.00028431,2]
[423690865,1780312262000,-835.50367395,0.000285,2]
[423690870,1780312262000,-586.83,0.0002863,7]
[423690869,1780312262000,-334.34,0.0002863,2]
[423690871,1780312262000,-586.83,0.0002863,2]
[423690872,1780312262000,-586.83,0.0002863,30]
[423690861,1780312262000,-163.70688747,0.00028431,2]
[423690842,1780312262000,-154.65802657,0.00028423,2]
[423690858,1780312262000,-150.0,0.00028425,30]
[423690845,1780312262000,-290.53758135,0.00028423,2]
[423690818,1780312262000,-1357.0,0.00028105,2]
[423690843,1780312262000,-295.84126637,0.00028423,2]
[423690813,1780312262000,-215.65015035,0.00028,10]
[423690819,1780312262000,-525.0,0.00028105,2]
[423690822,1780312262000,-297.63,0.00028127,2]
[423690821,1780312262000,-8848.75,0.00028127,2]
[423690823,1780312262000,-1226.0,0.00028178,2]
[423690820,1780312262000,-9775.88,0.00028127,2]
[423690824,1780312262000,-6068.0,0.00028181,2]
[423690825,1780312262000,-932.0,0.00028181,2]
[423690826,1780312262000,-695.0,0.00028205,3]
[423690829,1780312262000,-155.56990815,0.00028398,2]
[423690827,1780312262000,-1346.3,0.00028267,2]
[423690816,1780312262000,-209.21103511,0.00028,7]
[423690831,1780312262000,-5134.04,0.000284,14]
[423690830,1780312262000,-889.23,0.000284,7]
[423690838,1780312262000,-185.54120756,0.00028423,2]
[423690839,1780312262000,-252.42526289,0.00028423,2]
[423690836,1780312262000,-173.142735,0.00028421,2]
[423690846,1780312262000,-169.48143882,0.00028423,2]
[423690841,1780312262000,-277.97998943,0.00028423,2]
[423690837,1780312262000,-155.16539568,0.00028423,2]
[423690834,1780312262000,-160.17756582,0.00028421,2]
[423690835,1780312262000,-163.77243736,0.00028421,2]
[423690832,1780312262000,-160.94567805,0.00028421,2]
[423690828,1780312262000,-1000.0,0.00028312,7]
[423690840,1780312262000,-166.00924035,0.00028423,2]
[423690900,1780312263000,-334.34,0.00028756,7]
[423690906,1780312263000,-889.23,0.000288,7]
[423690908,1780312263000,-334.34,0.0002882,2]
[423690904,1780312263000,-334.34,0.00028788,30]
[423690903,1780312263000,-6006.8,0.00028767,2]
[423690901,1780312263000,-329.94,0.00028756,7]
[423690896,1780312263000,-1000.0,0.00028717,7]
[423690898,1780312263000,-329.94,0.00028725,2]
[423690920,1780312263000,-202.0,0.00028894,30]
[423690902,1780312263000,-1000.0,0.00028767,40]
[423690918,1780312263000,-334.34,0.00028883,30]
[423690913,1780312263000,-586.83,0.00028859,2]
[423690910,1780312263000,-334.34,0.00028852,7]
[423690914,1780312263000,-845.53,0.00028859,2]
[423690916,1780312263000,-1491.6,0.00028859,2]
[423690917,1780312263000,-854.38,0.00028859,2]
[423690912,1780312263000,-500.0,0.00028855,2]
[423690909,1780312263000,-329.94,0.0002882,2]
[423690911,1780312263000,-329.94,0.00028852,7]
[423690919,1780312263000,-329.94,0.00028883,30]
[423690915,1780312263000,-588.94,0.00028859,2]
[423690899,1780312263000,-695.0,0.00028739,3]
[423690905,1780312263000,-329.94,0.00028788,30]
[423690886,1780312263000,-334.34,0.00028661,7]
[423690895,1780312263000,-1000.0,0.00028714,7]
[423690921,1780312263000,-200.0,0.000289,2]
[423690884,1780312263000,-854.38,0.0002863,2]
[423690883,1780312263000,-854.38,0.0002863,7]
[423690873,1780312263000,-845.53,0.0002863,7]
[423690874,1780312263000,-845.53,0.0002863,2]
[423690877,1780312263000,-588.94,0.0002863,7]
[423690880,1780312263000,-1491.6,0.0002863,7]
[423690882,1780312263000,-1491.6,0.0002863,30]
[423690876,1780312263000,-329.94,0.0002863,2]
[423690879,1780312263000,-588.94,0.0002863,30]
[423690897,1780312263000,-334.34,0.00028725,2]
[423690881,1780312263000,-1491.6,0.0002863,2]
[423690878,1780312263000,-588.94,0.0002863,2]
[423690885,1780312263000,-854.38,0.0002863,30]
[423690887,1780312263000,-329.94,0.00028661,7]
[423690893,1780312263000,-1491.6,0.00028695,7]
[423690894,1780312263000,-854.38,0.00028695,7]
[423690890,1780312263000,-586.83,0.00028695,7]
[423690889,1780312263000,-329.94,0.00028693,30]
[423690891,1780312263000,-845.53,0.00028695,7]
[423690892,1780312263000,-588.94,0.00028695,7]
[423690888,1780312263000,-334.34,0.00028693,30]
[423690875,1780312263000,-845.53,0.0002863,30]
[423690923,1780312263000,-163.0,0.00028902,14]
[423690907,1780312263000,-5134.04,0.000288,14]
[423690922,1780312263000,-337.0,0.000289,2]
[423690954,1780312263000,-700.0,0.00029,2]
[423690952,1780312263000,-700.0,0.00029,2]
[423690951,1780312263000,-700.0,0.00029,2]
[423690955,1780312263000,-700.0,0.00029,2]
[423690959,1780312263000,-700.0,0.00029,2]
[423690957,1780312263000,-700.0,0.00029,2]
[423690956,1780312263000,-700.0,0.00029,2]
[423690958,1780312263000,-700.0,0.00029,2]
[423690960,1780312263000,-700.0,0.00029,2]
[423690963,1780312263000,-700.0,0.00029,2]
[423690953,1780312263000,-700.0,0.00029,2]
[423690964,1780312263000,-700.0,0.00029,2]
[423690962,1780312263000,-700.0,0.00029,2]
[423690966,1780312263000,-700.0,0.00029,2]
[423690969,1780312263000,-700.0,0.00029,2]
[423690972,1780312263000,-700.0,0.00029,2]
[423690968,1780312263000,-700.0,0.00029,2]
[423690970,1780312263000,-700.0,0.00029,2]
[423690965,1780312263000,-700.0,0.00029,2]
[423690971,1780312263000,-700.0,0.00029,2]
[423690967,1780312263000,-700.0,0.00029,2]
[423690925,1780312263000,-329.94,0.00028915,2]
[423690961,1780312263000,-700.0,0.00029,2]
[423690950,1780312263000,-700.0,0.00029,2]
[423690973,1780312263000,-700.0,0.00029,2]
[423690948,1780312263000,-700.0,0.00029,2]
[423690949,1780312263000,-700.0,0.00029,2]
[423690924,1780312263000,-334.34,0.00028915,2]
[423690926,1780312263000,-334.34,0.00028947,7]
[423690927,1780312263000,-329.94,0.00028947,7]
[423690928,1780312263000,-1000.0,0.0002896,7]
[423690929,1780312263000,-334.34,0.00028979,30]
[423690933,1780312263000,-10684.71129994,0.00029,2]
[423690931,1780312263000,-9005.47623449,0.00029,2]
[423690930,1780312263000,-329.94,0.00028979,30]
[423690932,1780312263000,-5002.0718935,0.00029,2]
[423690934,1780312263000,-219.56066956,0.00029,2]
[423690936,1780312263000,-598.5433452,0.00029,2]
[423690937,1780312263000,-727.65334769,0.00029,2]
[423690935,1780312263000,-3263.31593061,0.00029,2]
[423690947,1780312263000,-700.0,0.00029,2]
[423690945,1780312263000,-200.0,0.00029,2]
[423690944,1780312263000,-200.0,0.00029,2]
[423690943,1780312263000,-200.0,0.00029,2]
[423690939,1780312263000,-5000.0,0.00029,2]
[423690938,1780312263000,-510.86440665,0.00029,2]
[423690940,1780312263000,-6360.52,0.00029,2]
[423690941,1780312263000,-1000.0,0.00029,2]
[423690942,1780312263000,-568.58,0.00029,2]
[423690946,1780312263000,-258.16,0.00029,2]
[423690997,1780312264000,-1000.0,0.00029,2]
[423691000,1780312264000,-2500.0,0.00029,2]
[423691005,1780312264000,-158.0,0.00029,2]
[423690998,1780312264000,-1000.0,0.00029,2]
[423690999,1780312264000,-261.7,0.00029,2]
[423691001,1780312264000,-2500.0,0.00029,2]
[423691003,1780312264000,-158.0,0.00029,2]
[423691008,1780312264000,-158.0,0.00029,2]
[423691004,1780312264000,-158.0,0.00029,2]
[423691010,1780312264000,-158.0,0.00029,2]
[423691009,1780312264000,-158.0,0.00029,2]
[423691007,1780312264000,-158.0,0.00029,2]
[423691006,1780312264000,-158.0,0.00029,2]
[423691013,1780312264000,-162.0,0.00029,2]
[423691012,1780312264000,-158.0,0.00029,2]
[423691011,1780312264000,-158.0,0.00029,2]
[423691014,1780312264000,-156.0,0.00029,2]
[423690994,1780312264000,-548.0,0.00029,2]
[423691018,1780312264000,-156.0,0.00029,2]
[423691002,1780312264000,-160.0,0.00029,2]
[423690995,1780312264000,-359760.16521304,0.00029,30]
[423690984,1780312264000,-700.0,0.00029,2]
[423690992,1780312264000,-700.0,0.00029,2]
[423691015,1780312264000,-156.0,0.00029,2]
[423690975,1780312264000,-700.0,0.00029,2]
[423690978,1780312264000,-700.0,0.00029,2]
[423690977,1780312264000,-700.0,0.00029,2]
[423690976,1780312264000,-700.0,0.00029,2]
[423690979,1780312264000,-700.0,0.00029,2]
[423690974,1780312264000,-700.0,0.00029,2]
[423690980,1780312264000,-700.0,0.00029,2]
[423690982,1780312264000,-700.0,0.00029,2]
[423690981,1780312264000,-700.0,0.00029,2]
[423690983,1780312264000,-700.0,0.00029,2]
[423690985,1780312264000,-700.0,0.00029,2]
[423690986,1780312264000,-700.0,0.00029,2]
[423690990,1780312264000,-700.0,0.00029,2]
[423690988,1780312264000,-700.0,0.00029,2]
[423690987,1780312264000,-700.0,0.00029,2]
[423690989,1780312264000,-700.0,0.00029,2]
[423690991,1780312264000,-700.0,0.00029,2]
[423690993,1780312264000,-700.0,0.00029,2]
[423690996,1780312264000,-9831.0,0.00029,2]
[423691017,1780312264000,-156.0,0.00029,2]
[423691028,1780312264000,-298.18,0.00029,30]
[423691020,1780312264000,-1000.0,0.00029,2]
[423691044,1780312264000,-1000.0,0.00029047,7]
[423691042,1780312264000,-334.34,0.00029042,7]
[423691043,1780312264000,-329.94,0.00029042,7]
[423691047,1780312264000,-329.94,0.00029074,30]
[423691050,1780312264000,-200.0,0.0002913,20]
[423691048,1780312264000,-334.34,0.00029105,2]
[423691053,1780312264000,-200.0,0.0002913,7]
[423691055,1780312264000,-313.74453001,0.00029137,20]
[423691049,1780312264000,-329.94,0.00029105,2]
[423691046,1780312264000,-334.34,0.00029074,30]
[423691051,1780312264000,-200.0,0.0002913,20]
[423691056,1780312264000,-334.34,0.00029137,7]
[423691058,1780312264000,-334.34,0.00029169,30]
[423691059,1780312264000,-329.94,0.00029169,30]
[423691060,1780312264000,-586.83,0.00029189,7]
[423691057,1780312264000,-329.94,0.00029137,7]
[423691061,1780312264000,-1491.61,0.00029189,7]
[423691063,1780312264000,-588.94,0.00029189,7]
[423691062,1780312264000,-845.53,0.00029189,7]
[423691016,1780312264000,-156.0,0.00029,2]
[423691054,1780312264000,-500.0,0.0002913,5]
[423691040,1780312264000,-588.94,0.00029024,30]
[423691052,1780312264000,-392.11505407,0.0002913,5]
[423691041,1780312264000,-854.38,0.00029024,30]
[423691039,1780312264000,-845.53,0.00029024,30]
[423691019,1780312264000,-156.0,0.00029,2]
[423691022,1780312264000,-170.707664,0.00029,7]
[423691023,1780312264000,-170.707664,0.00029,7]
[423691021,1780312264000,-170.707664,0.00029,7]
[423691026,1780312264000,-215.65015035,0.00029,30]
[423691024,1780312264000,-170.707668,0.00029,7]
[423691025,1780312264000,-1000.0,0.00029,2]
[423691030,1780312264000,-209.21103511,0.00029,30]
[423691029,1780312264000,-6002.46,0.00029,7]
[423691027,1780312264000,-526.72086226,0.00029,2]
[423691045,1780312264000,-212.4658,0.00029055,2]
[423691032,1780312264000,-247.71,0.00029,2]
[423691034,1780312264000,-317.0819157,0.00029,2]
[423691035,1780312264000,-334.34,0.0002901,2]
[423691031,1780312264000,-1000.0,0.00029,2]
[423691037,1780312264000,-586.83,0.00029024,30]
[423691036,1780312264000,-329.94,0.0002901,2]
[423691038,1780312264000,-1491.61,0.00029024,30]
[423691033,1780312264000,-169.57875851,0.00029,2]
[423691098,1780312265000,-608.72,0.00029527,7]
[423691096,1780312265000,-854.38,0.00029519,30]
[423691091,1780312265000,-152.83685006,0.000295,2]
[423691089,1780312265000,-174.72834143,0.000295,2]
[423691092,1780312265000,-586.83,0.00029519,30]
[423691090,1780312265000,-174.72834143,0.000295,2]
[423691094,1780312265000,-845.53,0.00029519,30]
[423691095,1780312265000,-588.94,0.00029519,30]
[423691088,1780312265000,-174.72834144,0.000295,2]